bitfinex/quotes_ETHUSD_20260114
["timestamp","ask_amount","ask_price","bid_price","bid_amount"]
[1768427820860,0.001,3359.8,3358.4,0.96101199]
[1768427821060,0.001,3359.8,3358.6,0.96101199]
[1768427822942,0.001,3359.8,3358.8,0.96101199]
[1768427823381,4.5e-07,3359.8,3359.2,0.96101199]
[1768427823976,2.97567358,3360.6,3359.2,0.96101199]
[1768427824389,5.95134716,3360.6,3359.2,0.96101199]
[1768427824597,0.93039011,3360.5,3358.9,0.96101199]
[1768427824759,0.93039011,3360.4,3359.0,1.69278167]
[1768427824954,0.93039011,3360.4,3359.1,0.96101199]
[1768427825257,5.95184952,3360.3,3359.1,3.93799987]
[1768427825456,2.97592476,3360.3,3359.1,3.93799987]
[1768427826285,2.97592476,3360.3,3359.1,0.96101199]
[1768427827391,1.33339011,3360.5,3359.3,0.96101199]
[1768427827592,0.001,3360.3,3359.2,2.97689926]
[1768427829103,0.001,3360.3,3359.3,0.96101199]
[1768427829395,0.58556613,3363.0,3358.7,3.37931264]
[1768427829396,0.93039011,3361.2,3360.0,0.96101199]
[1768427829582,0.78123925,3361.2,3360.0,0.96101199]
[1768427829975,3.75637625,3361.2,3360.0,0.96101199]
[1768427830162,3.75637625,3361.2,3359.6,0.96101199]
[1768427830366,0.93039011,3361.1,3359.6,0.96101199]
[1768427830675,0.93039011,3360.9,3359.7,0.46291265]
[1768427830988,0.93039011,3360.9,3359.7,1.42392464]
[1768427831593,0.93039011,3360.9,3359.8,5.95273528]
[1768427831900,0.68806641,3361.0,3359.8,5.95273528]
[1768427832610,0.68806641,3361.0,3359.8,6.91374727]
[1768427832797,0.68806641,3361.0,3359.9,0.73766599]
[1768427833000,3.66337881,3361.0,3359.9,0.73766599]
[1768427833511,3.66337881,3361.0,3359.9,3.71390435]
[1768427835633,3.66337881,3361.0,3358.6,3.121]
[1768427835634,7.04433522,3360.6,3358.1,0.96101199]
[1768427835822,0.41465756,3360.3,3358.4,2.97759902]
[1768427836113,0.41465756,3360.3,3358.1,0.96101199]
[1768427836114,0.41465756,3360.3,3358.8,0.96101199]
[1768427836411,0.403,3360.2,3358.9,0.96101199]
[1768427836780,0.403,3360.2,3359.0,0.96101199]
[1768427837586,5.9522038,3360.1,3359.0,0.96101199]
[1768427839586,2.9761019,3360.1,3359.0,0.96101199]
[1768427839991,5.9522038,3360.1,3359.0,0.96101199]
[1768427841691,2.9761019,3360.1,3359.0,0.96101199]
[1768427841925,0.3417301,3360.0,3359.0,0.96101199]
[1768427843922,2.97627905,3359.9,3359.0,0.96101199]
[1768427844299,5.9525581,3359.9,3358.7,0.99031572]
[1768427844930,5.9525581,3359.9,3358.8,0.99031572]
[1768427845133,0.62942882,3359.8,3358.9,0.99031572]
[1768427845332,0.403,3359.7,3358.9,0.99031572]
[1768427845537,0.403,3359.7,3359.0,3.96739034]
[1768427845734,0.403,3359.7,3359.0,0.99031572]
[1768427846720,3.37951789,3359.7,3359.0,0.99031572]
[1768427847025,4.11220494,3359.7,3359.0,0.99031572]
[1768427847222,7.08872283,3359.7,3358.7,0.99031572]
[1768427847426,7.50338039,3359.7,3358.6,0.002]
[1768427847599,7.50338039,3359.7,3358.6,0.99231572]
[1768427847926,7.08872283,3359.7,3358.6,0.99231572]
[1768427848128,2.97663342,3359.5,3358.6,0.99231572]
[1768427850695,0.70887228,3359.6,3358.6,0.99231572]
[1768427850895,0.403,3359.5,3358.7,0.99031572]
[1768427851101,0.403,3359.8,3358.7,0.99031572]
[1768427851708,0.001,3360.3,3358.7,0.99031572]
[1768427851927,0.255,3360.2,3359.7,0.99031572]
[1768427852431,3.23103567,3360.2,3359.7,0.99031572]
[1768427852632,0.255,3360.2,3359.7,0.99031572]
[1768427853645,0.403,3360.1,3359.7,0.99031572]
[1768427855835,0.001,3360.3,3359.7,0.99031572]
[1768427856034,2.97694481,3360.3,3359.7,0.99031572]
[1768427856233,0.403,3360.2,3359.7,0.99031572]
[1768427856732,0.001,3360.3,3359.7,0.99031572]
[1768427857034,0.403,3360.2,3359.7,0.99031572]
[1768427857443,0.403,3360.2,3359.8,0.99031572]
[1768427857661,0.403,3360.5,3360.2,0.99031572]
[1768427859640,0.403,3360.6,3360.2,0.99031572]
[1768427860229,5.94990182,3361.4,3360.2,0.99031572]
[1768427860230,0.403,3360.8,3360.2,0.99031572]
[1768427860406,5.94990182,3361.4,3360.2,0.99031572]
[1768427860607,5.94990182,3361.4,3360.3,0.99031572]
[1768427860823,0.403,3361.3,3360.4,0.99031572]
[1768427861034,2.97512793,3361.2,3360.4,0.99031572]
[1768427861527,0.403,3361.1,3360.4,0.99031572]
[1768427861727,6.36385144,3361.8,3360.4,0.99031572]
[1768427861945,6.36385144,3361.8,3360.5,0.99031572]
[1768427861946,0.403,3361.7,3360.5,0.99031572]
[1768427862251,0.403,3361.7,3360.7,0.99031572]
[1768427864626,2.97477391,3361.6,3360.7,0.99031572]
[1768427865245,0.41465756,3362.3,3360.8,0.99031572]
[1768427865440,3.37724305,3362.2,3360.8,0.99031572]
[1768427866245,0.001,3361.4,3360.8,0.99031572]
[1768427866447,0.001,3361.4,3361.0,0.99031572]
[1768427870043,0.403,3361.9,3361.1,0.99031572]
[1768427870373,0.25384813,3361.9,3361.1,0.99031572]
[1768427871066,0.25384813,3361.9,3361.2,0.94679303]
[1768427873545,0.403,3361.9,3361.3,0.94679303]
[1768427874367,0.403,3361.9,3361.4,0.94679303]
[1768427877461,0.403,3362.1,3361.4,0.94679303]
[1768427878372,3.37741316,3362.1,3361.4,0.94679303]
[1768427879470,0.403,3362.1,3361.4,0.94679303]
[1768427879761,0.403,3362.1,3361.5,0.94679303]
[1768427879968,0.403,3362.1,3361.6,0.94679303]
[1768427883541,0.001,3362.5,3361.6,0.94679303]
[1768427883741,0.403,3362.4,3361.7,0.94679303]
[1768427884073,0.403,3362.3,3361.7,0.94679303]
[1768427885776,0.404,3362.5,3361.9,0.94679303]
[1768427886073,0.404,3362.5,3362.1,0.94679303]
[1768427886273,0.404,3362.5,3362.3,0.01065589]
[1768427887070,0.404,3362.5,3361.3,0.002]
[1768427887241,0.404,3362.5,3361.6,0.94679303]
[1768427887576,0.404,3362.5,3361.8,0.94679303]
[1768427889348,0.404,3362.5,3361.9,0.94679303]
[1768427891883,3.37799608,3362.5,3361.9,0.94679303]
[1768427892176,0.404,3362.5,3362.1,0.94679303]
[1768427892378,0.404,3362.5,3362.0,0.94879303]
[1768427892585,0.256,3362.5,3362.0,0.94879303]
[1768427896282,0.256,3362.5,3362.0,1.34112711]
[1768427898582,0.001,3362.8,3362.1,0.94679303]
[1768427898950,0.7587439,3363.2,3362.3,0.94679303]
[1768427899286,0.403,3363.1,3362.3,0.94679303]
[1768427900052,0.403,3363.2,3362.3,0.94679303]
[1768427900255,0.403,3363.2,3362.1,5.94862458]
[1768427900256,0.403,3363.2,3362.5,0.94679303]
[1768427900486,0.9067439,3363.4,3362.5,0.94679303]
[1768427900660,1.3097439,3363.4,3362.5,0.94679303]
[1768427900862,0.403,3363.4,3362.5,0.94679303]
[1768427901097,0.403,3363.4,3362.7,0.91251267]
[1768427901279,0.403,3363.4,3362.9,0.95116545]
[1768427902273,0.403,3363.4,3362.8,0.38864019]
[1768427902274,0.255,3363.4,3363.1,0.95116545]
[1768427902459,3.22783106,3363.8,3363.1,0.95116545]
[1768427902665,0.403,3363.8,3363.1,0.95116545]
[1768427904064,0.403,3363.9,3363.1,0.95116545]
[1768427905291,0.95915815,3363.5,3362.6,0.002]
[1768427905490,0.95915815,3363.3,3362.6,0.002]
[1768427907391,3.93251685,3363.2,3362.6,0.002]
[1768427907766,0.95915815,3363.2,3362.6,0.002]
[1768427908800,0.403,3363.2,3362.6,0.95316545]
[1768427912382,3.37637185,3363.2,3362.6,0.95316545]
[1768427912686,3.37637185,3363.2,3362.3,0.002]
[1768427912687,0.95915815,3363.1,3362.3,0.002]
[1768427913500,0.95915815,3362.9,3362.3,0.002]
[1768427914398,0.95915815,3362.9,3362.0,0.002]
[1768427914603,0.95915815,3362.7,3362.0,0.002]
[1768427914775,1.36215815,3362.6,3362.0,0.002]
[1768427915189,0.95915815,3362.5,3362.0,0.002]
[1768427915382,0.95915815,3362.3,3361.7,1.32350922]
[1768427917990,3.93334709,3362.3,3361.7,1.32350922]
[1768427918499,3.93334709,3362.3,3362.0,0.002]
[1768427918699,0.403,3362.6,3362.0,0.002]
[1768427918883,0.69100519,3362.6,3362.0,0.002]
[1768427919282,3.93314636,3362.5,3362.0,0.002]
[1768427919486,6.90713457,3362.5,3362.0,0.002]
[1768427920205,3.93314636,3362.5,3362.0,0.002]
[1768427921617,2.97398821,3362.5,3362.0,0.002]
[1768427921912,0.403,3362.4,3362.0,0.002]
[1768427922105,3.37707022,3362.4,3362.0,0.002]
[1768427922611,0.403,3362.4,3362.0,0.002]
[1768427923282,3.26192166,3362.6,3362.0,0.002]
[1768427923484,0.403,3362.5,3362.0,0.002]
[1768427924311,3.37699039,3362.5,3362.0,0.002]
[1768427924484,3.37697897,3362.5,3362.0,0.002]
[1768427926015,0.403,3362.5,3362.0,0.002]
[1768427927316,3.37699653,3362.5,3362.0,0.002]
[1768427929315,0.403,3362.5,3362.0,0.002]
[1768427929697,3.3770064,3362.5,3362.0,0.002]
[1768427929899,0.403,3362.5,3362.0,0.002]
[1768427930223,0.001,3362.4,3362.0,0.002]
[1768427930639,0.001,3362.4,3361.3,0.002]
[1768427930800,0.403,3362.3,3361.4,0.91011581]
[1768427930997,1.31687226,3362.3,3361.4,0.91011581]
[1768427931319,0.91387226,3362.2,3361.3,2.97700907]
[1768427931504,0.91387226,3362.2,3361.3,0.002]
[1768427932123,0.91387226,3362.2,3361.3,0.91211581]
[1768427932720,0.91387226,3362.1,3361.3,0.91211581]
[1768427933613,0.403,3362.3,3361.3,0.91211581]
[1768427933807,0.403,3362.3,3361.4,0.91011581]
[1768427934429,1.31687226,3362.3,3361.4,0.91011581]
[1768427934644,0.91387226,3362.2,3361.3,0.002]
[1768427934791,0.91387226,3361.8,3361.0,2.97725082]
[1768427934994,0.403,3361.7,3361.2,0.91011581]
[1768427935314,2.97424305,3362.2,3361.4,0.91011581]
[1768427935315,0.403,3362.2,3361.4,0.91011581]
[1768427935515,0.001,3362.4,3361.4,0.91011581]
[1768427935830,0.91487226,3362.4,3361.4,0.91011581]
[1768427936199,0.91487226,3362.4,3361.4,3.88500209]
[1768427936833,0.91487226,3362.4,3361.4,0.91011581]
[1768427937198,0.91387226,3362.2,3361.2,2.97509023]
[1768427937416,0.91387226,3362.2,3361.1,2.97520697]
[1768427937615,0.91387226,3362.2,3361.2,2.97510254]
[1768427937798,0.91387226,3362.2,3361.1,3.88533225]
[1768427937999,0.91387226,3362.1,3361.1,3.88533225]
[1768427938198,1.31687226,3362.0,3361.1,3.88533225]
[1768427939328,0.91387226,3361.9,3361.1,0.91011581]
[1768427939909,0.91387226,3361.6,3360.9,0.002]
[1768427940103,0.91387226,3361.3,3360.9,0.002]
[1768427941448,0.403,3361.5,3360.9,3.88747831]
[1768427941601,3.88827671,3362.1,3361.1,0.91011581]
[1768427941805,3.8889384,3362.4,3361.3,0.91011581]
[1768427942002,1.31687226,3362.3,3361.3,0.91011581]
[1768427942206,0.91387226,3362.3,3361.3,0.91011581]
[1768427942402,0.403,3362.2,3361.3,0.91011581]
[1768427942625,0.001,3362.2,3361.3,0.91011581]
[1768427942933,0.403,3362.1,3361.3,0.91011581]
[1768427943121,0.403,3362.1,3361.5,0.91011581]
[1768427944428,0.403,3362.1,3361.3,3.88514044]
[1768427944824,0.403,3362.1,3361.3,0.91011581]
[1768427945704,0.403,3362.1,3361.3,3.88514927]
[1768427946039,0.403,3362.1,3361.2,0.91211581]
[1768427946208,0.403,3362.1,3361.3,3.88510418]
[1768427947038,0.403,3362.1,3361.3,0.91011581]
[1768427948324,0.001,3362.2,3361.4,0.91011581]
[1768427948524,0.403,3362.1,3361.4,0.91011581]
[1768427949338,0.76587226,3363.3,3362.3,0.91011581]
[1768427949546,0.59960206,3364.5,3362.3,0.91011581]
[1768427949547,0.403,3363.2,3362.3,0.91011581]
[1768427949756,0.91387226,3364.2,3362.3,0.91011581]
[1768427950039,0.91387226,3364.0,3362.5,0.91011581]
[1768427950206,0.403,3363.9,3362.6,0.91011581]
[1768427950408,0.403,3363.9,3362.5,0.401]
[1768427950409,0.403,3363.9,3362.8,0.91011581]
[1768427951236,3.65845831,3364.1,3362.8,0.91011581]
[1768427951237,0.68586453,3364.1,3362.8,0.91011581]
[1768427951456,0.403,3364.0,3362.8,0.91011581]
[1768427952443,0.403,3364.0,3363.0,0.91011581]
[1768427953040,3.37568226,3364.0,3363.0,0.91011581]
[1768427953340,0.403,3364.0,3363.0,0.91011581]
[1768427954331,0.001,3363.7,3363.0,0.91011581]
[1768427954537,0.001,3363.7,3363.1,0.91011581]
[1768427958234,0.001,3363.7,3363.2,0.91011581]
[1768427958531,0.403,3364.8,3363.9,0.91011581]
[1768427958743,0.74047682,3364.8,3363.9,0.91011581]
[1768427960528,3.96068044,3364.7,3363.3,0.9087031]
[1768427960740,0.98861256,3364.6,3363.3,0.9087031]
[1768427961347,0.74047682,3364.8,3363.2,0.401]
[1768427961348,0.403,3364.8,3363.7,0.98546235]
[1768427961549,0.94528722,3365.4,3363.9,0.98546235]
[1768427961550,0.403,3365.4,3363.9,0.98546235]
[1768427961734,5.94106462,3366.4,3364.1,0.98546235]
[1768427961735,0.94528722,3366.0,3364.1,0.98546235]
[1768427961929,0.403,3365.9,3364.1,0.98546235]
[1768427962133,0.403,3365.9,3364.3,0.98546235]
[1768427962359,0.403,3365.9,3364.4,0.98546235]
[1768427962360,1.34828722,3365.9,3364.4,0.98546235]
[1768427962660,3.91643735,3365.7,3364.5,0.98546235]
[1768427962851,0.43194373,3365.6,3364.5,0.98546235]
[1768427963962,0.94528722,3365.5,3364.0,2.97262789]
[1768427964148,0.94528722,3365.3,3363.9,2.97268533]
[1768427964349,0.94528722,3365.1,3363.2,0.98546235]
[1768427964562,0.94528722,3364.7,3363.5,2.9730935]
[1768427964755,0.403,3364.6,3363.5,5.946187]
[1768427964955,0.403,3364.6,3363.5,6.93164935]
[1768427965336,0.403,3364.6,3363.5,3.95855585]
[1768427965531,0.403,3364.6,3363.6,0.98546235]
[1768427965742,0.403,3364.6,3363.7,1.45606728]
[1768427965946,0.403,3364.6,3363.7,0.47060493]
[1768427966434,0.403,3364.6,3364.2,0.002]
[1768427967368,0.001,3365.3,3364.2,0.002]
[1768427967669,0.94528722,3366.4,3364.8,0.98546235]
[1768427967965,0.403,3366.3,3364.8,0.98546235]
[1768427968534,0.94528722,3366.2,3364.8,0.98546235]
[1768427968734,5.94159412,3366.1,3364.9,2.97185651]
[1768427968930,5.94159412,3366.1,3364.3,0.401]
[1768427968931,0.98242328,3366.0,3364.3,0.98546235]
[1768427969166,0.98242328,3366.0,3364.2,2.41433299]
[1768427969167,0.94528722,3365.8,3364.7,2.97195232]
[1768427969342,0.403,3365.8,3364.8,2.97194353]
[1768427969957,0.403,3365.8,3364.8,2.97194408]
[1768427970154,0.403,3365.8,3364.5,0.98546235]
[1768427970355,0.03713937,3365.7,3364.5,0.98546235]
[1768427970674,0.03713937,3365.7,3364.2,2.41433299]
[1768427970675,0.94528722,3365.5,3364.2,2.41433299]
[1768427970857,3.91664948,3365.5,3364.2,2.41433299]
[1768427971766,0.94528722,3365.4,3364.2,2.41433299]
[1768427972165,0.03714379,3365.3,3364.2,2.41433299]
[1768427972367,0.403,3365.2,3364.2,2.41433299]
[1768427973150,3.37461046,3365.2,3364.2,2.41433299]
[1768427973352,0.72913185,3365.1,3364.2,5.38680764]
[1768427973540,3.17908604,3365.6,3364.3,0.98546235]
[1768427973741,0.94528722,3366.3,3364.4,0.98546235]
[1768427973942,0.402,3366.3,3364.4,0.98546235]
[1768427974165,0.402,3366.3,3364.3,0.401]
[1768427974166,0.402,3366.3,3364.6,0.98546235]
[1768427974471,0.03713386,3366.2,3364.6,0.98546235]
[1768427974956,0.98242108,3366.2,3364.6,0.98546235]
[1768427975157,0.98242108,3366.2,3364.2,8.35928252]
[1768427975158,0.94528722,3366.0,3364.4,2.97229818]
[1768427975360,0.94528722,3365.8,3364.4,2.97229818]
[1768427975669,0.94528722,3365.6,3364.4,2.97229818]
[1768427975868,0.03714158,3365.5,3364.4,2.97229818]
[1768427976040,0.03714158,3365.5,3364.4,5.94459636]
[1768427976240,0.94528722,3365.6,3364.4,2.97229818]
[1768427976672,0.94528722,3365.4,3364.2,2.41433299]
[1768427976837,0.98243101,3365.3,3364.2,5.38678538]
[1768427977160,3.95394581,3365.3,3364.2,5.38678538]
[1768427977337,0.39539458,3365.2,3364.2,5.38678538]
[1768427977540,0.39539458,3365.2,3364.2,2.41433299]
[1768427977541,0.94528722,3365.0,3364.2,2.41433299]
[1768427979276,2.97185651,3364.9,3364.2,2.41433299]
[1768427979441,0.94528722,3364.8,3364.2,2.33919854]
[1768427979646,0.68890002,3364.7,3364.2,2.33919854]
[1768427980244,1.63418724,3364.7,3364.2,2.33919854]
[1768427980845,0.94528722,3364.6,3363.9,0.002]
[1768427981078,0.402,3364.5,3363.9,0.002]
[1768427981576,2.97229818,3364.4,3363.9,0.002]
[1768427981777,0.72917632,3364.3,3363.9,0.002]
[1768427983784,3.70158357,3364.3,3363.9,0.002]
[1768427984606,0.68890002,3364.7,3363.9,0.98746235]
[1768427984760,0.94528722,3365.6,3363.9,0.98746235]
[1768427984961,0.402,3365.5,3363.9,0.98746235]
[1768427985504,1.34728722,3365.5,3363.9,0.98746235]
[1768427985681,3.9167905,3365.3,3364.0,6.93076555]
[1768427986495,2.97143803,3365.4,3364.1,0.98546235]
[1768427987207,5.94287606,3365.4,3364.1,0.98546235]
[1768427987568,6.88816328,3365.4,3364.1,0.98546235]
[1768427987764,0.94528722,3365.3,3363.9,0.002]
[1768427987994,0.94528722,3365.3,3363.9,0.98746235]
[1768427988697,0.94528722,3368.4,3366.5,0.128]
[1768427988860,0.21104426,3368.7,3366.7,0.94528722]
[1768427988861,0.402,3368.7,3366.7,0.94528722]
[1768427989064,0.94528722,3368.6,3366.9,0.94528722]
[1768427989271,0.94528722,3368.6,3366.8,1.08260701]
[1768427989272,0.94528722,3368.6,3367.0,1.14807664]
[1768427989497,0.94528722,3370.2,3367.5,0.94528722]
[1768427989701,0.94528722,3370.0,3367.8,5.93859492]
[1768427989870,0.94528722,3369.8,3367.8,5.93859492]
[1768427990280,0.94528722,3369.8,3367.9,0.401]
[1768427990598,0.94528722,3369.8,3367.9,0.73802975]
[1768427991872,0.93248331,3369.6,3368.0,2.96912114]
[1768427992068,0.93248331,3369.6,3367.9,0.73802975]
[1768427992396,0.93248331,3369.6,3367.9,6.67641028]
[1768427993193,0.93248331,3369.6,3367.9,3.70720099]
[1768427993363,0.93248331,3369.4,3368.0,0.3707201]
[1768427993566,0.93248331,3369.4,3368.0,3.33984124]
[1768427993795,0.969583,3369.3,3368.0,0.3707201]
[1768427993999,0.93248331,3369.2,3368.1,0.401]
[1768427995906,0.93248331,3369.2,3368.2,2.96894483]
[1768427996201,0.93248331,3369.2,3368.1,3.37002789]
[1768427996599,3.90060395,3369.2,3368.1,0.401]
[1768427996805,0.93248331,3369.1,3367.7,2.96938387]
[1768427996993,1.65954208,3369.0,3367.8,0.79246711]
[1768427997193,1.65954208,3369.0,3368.1,2.96899421]
[1768427997392,1.65954208,3369.0,3368.1,2.96902545]
[1768427997603,1.65954208,3369.0,3367.8,0.401]
[1768427997767,1.65954208,3369.0,3367.9,2.96920033]
[1768427998174,1.65954208,3369.0,3367.9,0.401]
[1768427998384,0.93248331,3369.0,3367.9,1.03495502]
[1768428000091,0.93248331,3369.0,3368.0,2.96912114]
[1768428000405,3.90072314,3369.0,3367.9,0.63395502]
[1768428000584,0.9695874,3368.9,3366.5,0.94528722]
[1768428000782,0.93248331,3368.7,3367.5,2.96955561]
[1768428001010,0.93248331,3368.7,3367.2,0.4]
[1768428001205,0.93248331,3368.7,3367.4,2.96956351]
[1768428001387,0.93248331,3368.7,3367.3,2.96968484]
[1768428001704,0.93248331,3368.7,3367.4,2.96964994]
[1768428002206,0.93248331,3368.5,3367.3,2.96973836]
[1768428002388,0.39010756,3368.4,3367.3,2.96973836]
[1768428002584,1.32259087,3368.4,3367.3,2.96973836]
[1768428003487,0.93248331,3368.3,3367.3,2.96973836]
[1768428004380,0.93248331,3368.3,3367.8,0.001]
[1768428004578,0.93248331,3368.2,3367.8,0.001]
[1768428004784,0.93248331,3368.0,3367.0,2.96992775]
[1768428005405,0.93248331,3368.0,3366.4,0.94528722]
[1768428005583,0.93248331,3368.0,3366.6,2.97034676]
[1768428005777,0.93248331,3368.0,3366.8,2.97012991]
[1768428005983,0.93248331,3368.0,3366.6,2.97030466]
[1768428006176,0.93248331,3367.8,3366.6,2.97030466]
[1768428006381,0.93248331,3367.7,3366.6,2.97030466]
[1768428006578,0.93248331,3367.8,3366.6,2.97030466]
[1768428008619,0.93248331,3367.6,3366.5,3.37042572]
[1768428008979,0.93248331,3367.6,3366.5,6.3408698]
[1768428009180,0.43038689,3367.5,3366.5,6.3408698]
[1768428009410,0.43038689,3367.5,3366.5,3.37042572]
[1768428009616,0.43038689,3367.5,3366.5,6.3408698]
[1768428009796,0.43038689,3367.5,3366.5,5.9408698]
[1768428010113,0.43038689,3367.5,3366.6,0.4]
[1768428011117,0.402,3367.7,3366.6,0.4]
[1768428011315,3.37144968,3367.7,3366.6,3.37034275]
[1768428011616,4.30393299,3367.7,3366.6,3.37034275]
[1768428011908,1.33448331,3367.7,3366.6,6.34069859]
[1768428012712,4.30388582,3367.7,3366.6,3.37034275]
[1768428012917,0.7479156,3367.6,3366.6,3.37034275]
[1768428015619,0.7479156,3367.6,3366.6,6.34069859]
[1768428016320,0.7479156,3367.6,3366.6,3.37034275]
[1768428017398,0.7479156,3367.6,3366.9,0.001]
[1768428017600,1.68039891,3367.6,3366.9,0.001]
[1768428019430,0.50518014,3367.5,3366.9,0.001]
[1768428019962,4.40724569,3367.5,3366.9,0.001]
[1768428020122,1.43766345,3367.5,3366.9,0.001]
[1768428020649,4.40722932,3367.5,3366.9,0.001]
[1768428020803,0.95766884,3367.4,3366.9,0.001]
[1768428021008,1.73804902,3367.4,3366.9,0.001]
[1768428021440,0.91224548,3367.3,3366.9,0.001]
[1768428023635,0.9493672,3367.3,3366.9,0.001]
[1768428024644,0.91224548,3367.3,3366.9,0.001]
[1768428025643,0.91224548,3367.2,3366.9,0.001]
[1768428025879,0.39191327,3367.1,3366.2,2.97069094]
[1768428026013,0.39191327,3367.1,3366.2,3.37069094]
[1768428026014,1.30415875,3367.1,3366.2,3.37069094]
[1768428026920,1.30415875,3367.1,3366.2,2.97069094]
[1768428027147,0.91224548,3367.0,3366.2,3.37069094]
[1768428030159,0.91224548,3367.0,3366.2,0.4]
[1768428030456,0.91224548,3366.8,3366.2,0.401]
[1768428030652,0.42741373,3366.9,3366.2,3.37170376]
[1768428031054,0.42741373,3366.9,3366.5,0.002]
[1768428031750,0.39191327,3367.1,3366.5,0.002]
[1768428036458,1.30415875,3367.1,3366.5,0.002]
[1768428036837,0.91224548,3367.1,3366.5,0.002]
[1768428037758,0.91224548,3367.0,3366.5,0.002]
[1768428040940,0.94937161,3366.9,3366.2,0.401]
[1768428041145,0.91224548,3366.9,3366.2,0.401]
[1768428041345,0.91224548,3366.9,3366.1,0.002]
[1768428041554,0.91224548,3366.8,3366.1,0.002]
[1768428041871,0.91224548,3366.8,3366.1,0.403]
[1768428042059,0.91224548,3366.8,3366.1,3.37378619]
[1768428042661,0.91224548,3366.8,3366.1,0.403]
[1768428042860,0.91224548,3366.8,3366.1,3.37377404]
[1768428043271,0.91224548,3366.8,3366.1,0.403]
[1768428043567,1.37301654,3366.8,3366.1,3.37379424]
[1768428043773,1.37301654,3366.8,3366.4,0.002]
[1768428044973,0.91224548,3366.7,3366.4,0.002]
[1768428045680,0.46077106,3366.8,3366.4,0.002]
[1768428046052,0.91224548,3366.7,3366.4,0.002]
[1768428046250,3.37190168,3367.2,3366.4,0.002]
[1768428046251,0.91224548,3367.0,3366.4,0.002]
[1768428046452,1.63765167,3366.9,3366.4,0.002]
[1768428047177,0.91224548,3366.8,3366.4,0.002]
[1768428047995,0.91224548,3366.8,3365.8,2.97105161]
[1768428047996,0.91224548,3366.8,3365.4,0.92210871]
[1768428048157,3.69551904,3366.9,3365.4,0.92210871]
[1768428048158,0.91224548,3366.6,3365.5,0.401]
[1768428048487,0.91224548,3366.6,3365.6,3.37222888]
[1768428048672,0.91224548,3366.6,3365.6,0.401]
[1768428049051,0.91224548,3366.4,3365.6,3.37222757]
[1768428049558,0.91224548,3366.4,3365.7,0.40180768]
[1768428049755,0.91224548,3366.6,3365.7,1.72491639]
[1768428049961,0.42844295,3366.5,3365.7,1.72491639]
[1768428050159,0.42844295,3366.5,3365.7,1.32310871]
[1768428050366,0.91224548,3366.4,3365.7,0.401]
[1768428050971,0.91224548,3366.4,3365.6,3.37222757]
[1768428051992,0.91224548,3366.4,3365.5,2.97128715]
[1768428052162,0.90916378,3366.2,3365.6,0.401]
[1768428052774,0.90916378,3366.2,3365.2,0.94528722]
[1768428053086,0.90916378,3366.2,3364.9,0.94728722]
[1768428053087,0.90916378,3366.1,3364.9,0.94728722]
[1768428053293,0.90916378,3366.1,3365.0,4.31805542]
[1768428053470,1.33735453,3366.0,3365.0,4.31805542]
[1768428053784,0.90916378,3366.0,3365.0,4.31805542]
[1768428054353,0.90916378,3366.0,3365.0,0.94528722]
[1768428054793,0.90916378,3366.0,3365.0,0.401]
[1768428055174,0.90916378,3365.8,3364.9,2.97383865]
[1768428055572,0.90916378,3365.8,3364.9,0.002]
[1768428055783,0.90916378,3365.6,3364.9,0.002]
[1768428055961,0.90916378,3365.6,3365.3,0.002]
[1768428056362,0.90916378,3365.6,3364.7,0.002]
[1768428056592,0.90916378,3365.6,3365.0,0.002]
[1768428057700,0.90916378,3365.5,3365.0,0.002]
[1768428057887,0.90916378,3365.3,3365.0,0.002]
[1768428059302,0.90916378,3365.3,3364.2,0.94528722]
[1768428059303,0.90916378,3365.3,3364.2,3.91768516]
[1768428059600,0.90916378,3365.3,3364.3,2.97238126]
[1768428060181,0.90916378,3365.2,3364.3,2.97238126]
[1768428060373,1.37364983,3365.1,3364.3,2.97238126]
[1768428061290,1.37364983,3365.1,3364.3,3.91766848]
[1768428062198,0.90916378,3365.0,3364.2,3.37345119]
[1768428062402,0.90916378,3365.0,3364.2,0.401]
[1768428062564,0.90916378,3365.0,3364.3,2.97236783]
[1768428062765,1.34368079,3365.0,3364.3,2.97236783]
[1768428063704,2.97067041,3366.3,3364.4,0.94528722]
[1768428064011,0.90916378,3369.8,3368.1,0.98652676]
[1768428064234,0.001,3369.9,3366.8,0.128]
[1768428064235,0.90916378,3370.2,3369.3,6.8]
[1768428064516,2.96709491,3370.3,3369.3,6.8]
[1768428064517,0.90916378,3370.0,3369.3,6.8]
[1768428065106,0.90916378,3371.3,3370.6,6.37217413]
[1768428065303,0.90916378,3371.3,3370.3,6.37217413]
[1768428065304,0.90916378,3371.2,3370.3,6.37217413]
[1768428065607,1.99532525,3371.1,3370.3,6.37217413]
[1768428065915,0.03708098,3371.0,3370.3,6.37217413]
[1768428066208,2.96656679,3370.9,3370.6,6.37217413]
[1768428066568,2.96656679,3370.9,3370.6,6.26042413]
[1768428066966,5.93313358,3370.9,3370.2,0.02062751]
[1768428067188,5.93313358,3370.9,3367.8,0.05]
[1768428067189,0.90916378,3370.7,3368.9,0.401]
[1768428067471,0.90916378,3370.5,3368.9,1.38752676]
[1768428067671,0.03708758,3370.4,3368.9,1.38752676]
[1768428067872,0.03708758,3370.4,3368.9,4.35583814]
[1768428068300,5.93418982,3370.3,3368.9,1.38752676]
[1768428068470,0.72513379,3370.2,3368.9,1.38752676]
[1768428068802,0.001,3369.7,3368.9,0.98652676]
[1768428070807,0.001,3369.7,3368.5,1.38752676]
[1768428071208,0.001,3369.7,3368.7,2.9684901]
[1768428071389,0.001,3369.7,3368.6,2.96858716]
[1768428071792,0.03809529,3369.7,3368.5,1.38752676]
[1768428072113,0.03809529,3369.7,3368.5,0.98652676]
[1768428072300,3.3697113,3369.6,3368.5,0.98652676]
[1768428072502,0.63382597,3369.5,3368.5,0.98652676]
[1768428073300,0.63382597,3369.5,3368.5,3.95519037]
[1768428075617,0.402,3369.6,3368.6,0.98652676]
[1768428076693,0.402,3369.6,3368.7,3.95503093]
[1768428077214,0.001,3369.7,3368.9,0.98652676]
[1768428078715,0.001,3369.7,3369.1,0.98652676]
[1768428080222,0.90916378,3371.1,3369.5,0.98652676]
[1768428080423,0.985959,3370.9,3369.5,0.98652676]
[1768428080596,0.402,3370.8,3369.5,0.98652676]